lending/lending_fUSD_20240504
["ID","MTS","AMOUNT","RATE_DAILY","PERIOD"]
[325425627,1714863046926,-500.0,0.00041095,30]
[325425628,1714863046936,-943.99,0.00041095,30]
[325425629,1714863046948,-634.26,0.00041095,30]
[325425630,1714863046959,-500.0,0.00041095,30]
[325425631,1714863046969,-1444.66,0.00041095,30]
[325425632,1714863046979,-500.0,0.00041095,30]
[325425633,1714863046989,-500.0,0.00041095,30]
[325425634,1714863047000,-816.96,0.00041095,30]
[325425635,1714863047010,-500.0,0.00041095,30]
[325425636,1714863047023,-500.0,0.00041095,30]
[325425637,1714863047033,-793.02,0.00041095,30]
[325425638,1714863047044,-993.3,0.00041095,30]
[325425639,1714863047056,-500.0,0.00041095,30]
[325425640,1714863047067,-738.82,0.00041095,30]
[325425641,1714863047076,-1087.35,0.00041095,30]
[325425642,1714863047086,-570.36724221,0.00041095,30]
[325425643,1714863047096,-718.34,0.00041095,30]
[325425644,1714863047107,-500.0,0.00041095,30]
[325425645,1714863047117,-500.0,0.00041095,30]
[325425646,1714863047126,-500.0,0.00041095,30]
[325425647,1714863047136,-991.38,0.00041095,30]
[325425648,1714863047146,-487.20963914,0.00041095,30]
[325425649,1714863047155,-814.81,0.00041095,30]
[325425650,1714863047165,-1128.9,0.00041095,30]
[325425651,1714863047175,-500.0,0.00041095,2]
[325425652,1714863047185,-1477.65,0.00041095,30]
[325425653,1714863047195,-500.0,0.00041095,30]
[325425654,1714863047205,-500.0,0.00041095,30]
[325425655,1714863047215,-751.52,0.00041095,30]
[325425656,1714863047224,-500.0,0.00041095,30]
[325425657,1714863047234,-500.0,0.00041095,30]
[325425658,1714863047244,-802.59,0.00041095,30]
[325425659,1714863047254,-1786.19,0.00041095,30]
[325425660,1714863047264,-500.0,0.00041095,30]
[325425661,1714863047274,-644.45,0.00041095,30]
[325425662,1714863047284,-500.0,0.00041095,30]
[325425663,1714863047294,-500.0,0.00041095,30]
[325425664,1714863047305,-500.0,0.00041095,30]
[325425665,1714863047315,-500.0,0.00041095,31]
[325425666,1714863047325,-500.0,0.00041095,32]
[325425667,1714863047335,-1849.99,0.00041095,30]
[325425668,1714863047344,-496.38557403,0.00041095,33]
[325425669,1714863047354,-972.58,0.00041095,30]
[325425670,1714863047364,-588.98,0.00041095,30]
[325425671,1714863047373,-500.0,0.00041095,30]
[325425672,1714863047383,-500.0,0.00041095,30]
[325425673,1714863047393,-500.0,0.00041095,30]
[325425674,1714863047403,-702.04,0.00041095,30]
[325425675,1714863047412,-589.332266,0.00041095,30]
[325425676,1714863047422,-684.02,0.00041095,30]
[325425677,1714863047432,-1693.16,0.00041095,30]
[325425678,1714863047441,-500.0,0.00041095,30]
[325425679,1714863047452,-500.0,0.00041095,30]
[325425680,1714863047462,-500.0,0.00041095,30]
[325425681,1714863047471,-1219.46,0.00041095,30]
[325425682,1714863047481,-500.0,0.00041095,30]
[325425683,1714863047491,-773.55,0.00041095,30]
[325425684,1714863047501,-500.0,0.00041095,30]
[325425685,1714863047510,-1212.04,0.00041095,30]
[325425686,1714863047520,-2670.87,0.00041095,30]
[325425687,1714863047530,-1228.09,0.00041095,30]
[325425688,1714863047540,-808.99,0.00041095,30]
[325425689,1714863047550,-500.0,0.00041095,30]
[325425690,1714863047560,-500.0,0.00041095,30]
[325425691,1714863047569,-500.0,0.00041095,30]
[325425692,1714863047579,-1991.1,0.00041095,30]
[325425693,1714863047588,-500.0,0.00041095,30]
[325425694,1714863047598,-500.0,0.00041095,30]
[325425695,1714863047607,-791.39,0.00041095,30]
[325425696,1714863047617,-500.0,0.00041095,30]
[325425697,1714863047627,-500.0,0.00041095,30]
[325425698,1714863047637,-1269.13,0.00041095,30]
[325425699,1714863047646,-732.36,0.00041095,30]
[325425700,1714863047656,-1168.74,0.00041095,30]
[325425701,1714863047666,-500.0,0.00041095,30]
[325425702,1714863047675,-983.52,0.00041095,30]
[325425703,1714863047685,-583.24,0.00041095,30]
[325425704,1714863047695,-1922.73,0.00041095,30]
[325425705,1714863047704,-1778.95,0.00041095,30]
[325425706,1714863047713,-500.0,0.00041095,30]
[325425707,1714863047723,-629.34,0.00041095,30]
[325425708,1714863047733,-817.89,0.00041095,30]
[325425709,1714863047742,-500.0,0.00041095,30]
[325425710,1714863047752,-1006.96,0.00041095,30]
[325425711,1714863047762,-966.17,0.00041095,30]
[325425712,1714863047771,-500.0,0.00041095,30]
[325425713,1714863047781,-500.0,0.00041095,30]
[325425714,1714863047791,-2402.58,0.00041095,30]
[325425715,1714863047802,-535.86,0.00041095,30]
[325425716,1714863047812,-500.0,0.00041095,30]
[325425717,1714863047821,-674.42,0.00041095,30]
[325425718,1714863047831,-1274.57,0.00041095,30]
[325425719,1714863047841,-853.4,0.00041095,30]
[325425720,1714863047850,-500.0,0.00041095,30]
[325425721,1714863047860,-500.0,0.00041095,30]
[325425722,1714863047870,-788.75,0.00041095,30]
[325425723,1714863047880,-500.0,0.00041095,30]
[325425724,1714863047890,-629.76,0.00041095,30]
[325425725,1714863047899,-500.0,0.00041095,30]
[325425726,1714863047909,-2184.28,0.00041095,30]
[325425727,1714863047919,-836.55,0.00041095,30]
[325425728,1714863047929,-500.0,0.00041095,30]
[325425729,1714863047938,-527.52,0.00041095,30]
[325425730,1714863047947,-1929.05,0.00041095,30]
[325425731,1714863047957,-500.0,0.00041095,30]
[325425732,1714863047967,-743.15,0.00041095,30]
[325425733,1714863047977,-825.7,0.00041095,30]
[325425734,1714863047987,-543.85,0.00041095,30]
[325425735,1714863047997,-1732.14,0.00041095,30]
[325425736,1714863048006,-500.0,0.00041095,30]
[325425737,1714863048018,-500.0,0.00041095,30]
[325425738,1714863048029,-1539.42,0.00041095,30]
[325425739,1714863048038,-500.0,0.00041095,30]
[325425740,1714863048048,-500.0,0.00041095,30]
[325425741,1714863048059,-500.0,0.00041095,30]
[325425742,1714863048069,-500.0,0.00041095,30]
[325425743,1714863048079,-500.0,0.00041095,30]
[325425744,1714863048089,-500.0,0.00041095,30]
[325425745,1714863048100,-500.0,0.00041095,30]
[325425746,1714863048110,-4204.76,0.00041095,30]
[325425747,1714863048120,-500.0,0.00041095,30]
[325425748,1714863048131,-1720.2,0.00041095,30]
[325425749,1714863048141,-500.0,0.00041095,30]
[325425750,1714863048151,-500.0,0.00041095,30]
[325425751,1714863048161,-1524.0,0.00041095,30]
[325425752,1714863048172,-690.17,0.00041095,30]
[325425753,1714863048182,-783.65,0.00041095,30]
[325425754,1714863048192,-1269.06,0.00041095,30]
[325425755,1714863048202,-819.65,0.00041095,30]
[325425756,1714863048213,-596.02,0.00041095,30]
[325425757,1714863048223,-1956.65,0.00041095,30]
[325425758,1714863048232,-669.47,0.00041095,30]
[325425759,1714863048242,-903.18,0.00041095,30]
[325425760,1714863048252,-500.0,0.00041095,30]
[325425761,1714863048263,-1968.57,0.00041095,30]
[325425762,1714863048272,-1986.03,0.00041095,30]
[325425763,1714863048283,-889.56,0.00041095,30]
[325425764,1714863048293,-2794.51,0.00041095,30]
[325425765,1714863048304,-516.13710786,0.00041095,30]
[325425766,1714863048314,-500.0,0.00041095,30]
[325425767,1714863048324,-1533.63,0.00041095,30]
[325425768,1714863048334,-1013.28,0.00041095,30]
[325425769,1714863048344,-1545.97,0.00041095,30]
[325425770,1714863048354,-1688.32,0.00041095,30]
[325425771,1714863048364,-1105.3,0.00041095,30]
[325425772,1714863048374,-655.32,0.00041095,30]
[325425773,1714863048384,-2475.24,0.00041095,30]
[325425774,1714863048394,-1220.54,0.00041095,30]
[325425775,1714863048403,-500.0,0.00041095,30]
[325425776,1714863048413,-500.0,0.00041095,30]
[325425777,1714863048423,-821.8,0.00041095,30]
[325425778,1714863048433,-749.4,0.00041095,30]
[325425779,1714863048443,-500.0,0.00041095,31]
[325425780,1714863048453,-500.0,0.00041095,30]
[325425781,1714863048463,-2136.65,0.00041095,30]
[325425782,1714863048473,-503.85157424,0.00041095,30]
[325425783,1714863048483,-608.68,0.00041095,30]
[325425784,1714863048492,-761.33,0.00041095,30]
[325425785,1714863048503,-500.0,0.00041095,30]
[325425786,1714863048513,-549.16,0.00041095,30]
[325425787,1714863048523,-797.98,0.00041095,30]
[325425788,1714863048533,-500.0,0.00041095,30]
[325425789,1714863048543,-630.03880936,0.00041095,30]
[325425790,1714863048553,-500.0,0.00041095,30]
[325425791,1714863048563,-713.41,0.00041095,30]
[325425792,1714863048572,-500.0,0.00041095,30]
[325425793,1714863048582,-500.0,0.00041095,30]
[325425794,1714863048592,-613.55,0.00041095,30]
[325425795,1714863048602,-1707.0,0.00041095,30]
[325425796,1714863048611,-606.77,0.00041095,30]
[325425797,1714863048622,-500.0,0.00041095,30]
[325425798,1714863048632,-2090.66,0.00041095,30]
[325425799,1714863048642,-1701.77,0.00041095,30]
[325425800,1714863048651,-500.0,0.00041095,30]
[325425801,1714863048662,-1000.0,0.00041095,2]
[325425802,1714863048672,-500.0,0.00041095,30]
[325425803,1714863048682,-2322.84,0.00041095,30]
[325425804,1714863048692,-500.0,0.00041095,30]
[325425805,1714863048702,-81.47878095,0.00041095,30]
[325425806,1714863049575,-312.22749071,0.00041095,30]
[325425807,1714863049585,-195.87861346,0.00041095,30]
[325425808,1714863049597,-385.401005,0.00041095,30]
[325425809,1714863049622,-654.02,0.00041095,30]
[325425810,1714863049633,-156.22038154,0.00041095,30]
[325425811,1714863049642,-1256.01,0.00041095,30]
[325425812,1714863049652,-500.0,0.00041095,30]
[325425813,1714863049661,-500.0,0.00041095,30]
[325425814,1714863049671,-500.0,0.00041095,30]
[325425815,1714863049680,-1071.89,0.00041095,7]
[325425816,1714863049689,-419.00921272,0.00041095,30]
[325425817,1714863049701,-1619.77078728,0.00041095,30]
[325425818,1714863049710,-223.31617424,0.00041095,30]
[325425819,1714863049785,-2366.34382576,0.00041095,30]
[325425820,1714863049794,-1822.41,0.00041095,30]
[325425821,1714863049804,-500.0,0.00041095,30]
[325425822,1714863049813,-500.0,0.00041095,30]
[325425823,1714863049823,-508.85604031,0.00041095,30]
[325425824,1714863049832,-1931.03,0.00041095,30]
[325425825,1714863049842,-1891.08497188,0.00041095,30]
[325425826,1714863050565,-765.5,0.00039617,15]
[325425827,1714863050575,-500.0,0.00039999,31]
[325425828,1714863050585,-500.0,0.00039999,31]
[325425829,1714863050594,-500.0,0.00039999,31]
[325425830,1714863050605,-500.0,0.00039999,31]
[325425831,1714863050614,-500.0,0.00039999,31]
[325425832,1714863050624,-500.0,0.00039999,31]
[325425833,1714863050633,-500.0,0.00039999,31]
[325425834,1714863050643,-500.0,0.00039999,31]
[325425835,1714863050653,-500.0,0.00039999,31]
[325425836,1714863050662,-500.0,0.00039999,31]
[325425837,1714863050671,-155.0,0.00039999,7]
[325425838,1714863050680,-500.0,0.00039999,31]
[325425839,1714863050690,-500.0,0.00039999,31]
[325425840,1714863050699,-500.0,0.00039999,31]
[325425841,1714863050708,-500.0,0.00039999,31]
[325425842,1714863050718,-500.0,0.00039999,31]
[325425843,1714863050727,-500.0,0.00039999,31]
[325425844,1714863050736,-500.0,0.00039999,31]
[325425845,1714863050746,-500.0,0.00039999,31]
[325425846,1714863050755,-500.0,0.00039999,31]
[325425847,1714863050764,-500.0,0.00039999,31]
[325425848,1714863050774,-500.0,0.00039999,31]
[325425849,1714863050784,-500.0,0.00039999,31]
[325425850,1714863050793,-500.0,0.00039999,31]
[325425851,1714863050802,-500.0,0.00039999,31]
[325425852,1714863050811,-500.0,0.00039999,31]
[325425853,1714863050820,-500.0,0.00039999,31]
[325425854,1714863050829,-500.0,0.00039999,31]
[325425855,1714863050839,-500.0,0.00039999,31]
[325425856,1714863050849,-500.0,0.00039999,31]
[325425857,1714863050858,-500.0,0.00039999,31]
[325425858,1714863050867,-500.0,0.00039999,31]
[325425859,1714863050877,-500.0,0.00039999,31]
[325425860,1714863050890,-560.39209919,0.00039999,31]
[325425861,1714863050904,-472.17502812,0.00041095,30]
[325425862,1714863050920,-500.0,0.00041095,30]
[325425863,1714863050934,-248.10736097,0.00041095,30]
[325425864,1714863050945,-500.0,0.00041095,30]
[325425865,1714863050959,-500.0,0.00041095,30]
[325425866,1714863050973,-776.35,0.00041095,30]
[325425867,1714863050987,-500.0,0.00041095,30]
[325425868,1714863051000,-2000.0,0.00041095,28]
[325425869,1714863051015,-500.0,0.00041095,30]
[325425870,1714863051034,-1463.47,0.00041095,30]
[325425871,1714863051047,-500.0,0.00041095,30]
[325425872,1714863051062,-1063.62,0.00041095,30]
[325425873,1714863051076,-535.41,0.00041095,30]
[325425874,1714863051091,-443.96280405,0.00041095,30]
[325425875,1714863051104,-500.0,0.00041095,30]
[325425876,1714863051116,-588.45,0.00041095,30]
[325425877,1714863051128,-500.0,0.00041095,30]
[325425878,1714863051140,-500.0,0.00041095,30]
[325425879,1714863051154,-500.0,0.00041095,30]
[325425880,1714863051168,-539.28,0.00041095,30]
[325425881,1714863051182,-961.22,0.00041095,30]
[325425882,1714863051197,-3541.6,0.00041095,30]
[325425883,1714863051212,-1356.28,0.00041095,30]
[325425884,1714863051224,-500.0,0.00041095,30]
[325425885,1714863051235,-1952.62,0.00041095,30]
[325425886,1714863051246,-500.0,0.00041095,30]
[325425887,1714863051259,-500.0,0.00041095,30]
[325425888,1714863051273,-1285.12,0.00041095,30]
[325425889,1714863051286,-604.69,0.00041095,30]
[325425890,1714863051299,-3397.53,0.00041095,30]
[325425891,1714863051312,-1555.64,0.00041095,30]
[325425892,1714863051326,-1901.44,0.00041095,30]
[325425893,1714863051338,-982.17,0.00041095,30]
[325425894,1714863051349,-807.15,0.00041095,30]
[325425895,1714863051360,-2438.78,0.00041095,30]
[325425896,1714863051372,-1038.23,0.00041095,30]
[325425897,1714863051384,-948.28,0.00041095,30]
[325425898,1714863051401,-635.75,0.00041095,30]
[325425899,1714863051413,-500.0,0.00041095,30]
[325425900,1714863051424,-1710.29,0.00041095,30]
[325425901,1714863051436,-2636.0,0.00041095,30]
[325425902,1714863051448,-677.88,0.00041095,30]
[325425903,1714863051459,-1944.47,0.00041095,30]
[325425904,1714863051471,-500.0,0.00041095,30]
[325425905,1714863051483,-508.23472751,0.00041095,30]
[325425906,1714863051494,-1955.45,0.00041095,30]
[325425907,1714863051506,-500.0,0.00041095,30]
[325425908,1714863051517,-826.23,0.00041095,30]
[325425909,1714863051528,-500.0,0.00041095,30]
[325425910,1714863051540,-1199.18,0.00041095,30]
[325425911,1714863051552,-2500.63,0.00041095,30]
[325425912,1714863051563,-500.0,0.00041095,30]
[325425913,1714863051575,-2735.54,0.00041095,30]
[325425914,1714863051586,-2021.53,0.00041095,30]
[325425915,1714863051598,-500.0,0.00041095,30]
[325425916,1714863051609,-3425.95,0.00041095,30]
[325425917,1714863051620,-522.34014246,0.00041095,30]
[325425918,1714863051632,-500.0,0.00041095,30]
[325425919,1714863051643,-555.13,0.00041095,30]
[325425920,1714863051655,-1569.94,0.00041095,30]
[325425921,1714863051667,-761.69,0.00041095,30]
[325425922,1714863051678,-504.24,0.00041095,30]
[325425923,1714863051690,-1696.03,0.00041095,30]
[325425924,1714863051701,-2343.27,0.00041095,30]
[325425925,1714863051712,-1926.74,0.00041095,30]
[325425926,1714863051724,-500.0,0.00041095,30]
[325425927,1714863051736,-500.0,0.00041095,30]
[325425928,1714863051748,-500.0,0.00041095,30]
[325425929,1714863051759,-500.0,0.00041095,30]
[325425930,1714863051770,-500.0,0.00041095,30]
[325425931,1714863051782,-1254.32,0.00041095,30]
[325425932,1714863051793,-2274.64,0.00041095,30]
[325425933,1714863051805,-500.0,0.00041095,30]
[325425934,1714863051817,-500.0,0.00041095,7]
[325425935,1714863051829,-500.0,0.00041095,7]
[325425936,1714863051840,-1319.04,0.00041095,30]
[325425937,1714863051852,-1194.62,0.00041095,30]
[325425938,1714863051863,-185.76983772,0.00041095,7]
[325425939,1714863052220,-314.23016228,0.00041095,7]
[325425940,1714863052234,-424.3498377,0.00041095,30]
[325425941,1714863052300,-500.0,0.00039999,31]
[325425942,1714863052312,-155.0,0.00039999,4]
[325425943,1714863052324,-65.134902,0.00039999,31]
[325425944,1714863052339,-434.865098,0.00039999,31]
[325425945,1714863052352,-500.0,0.00039999,31]
[325425946,1714863052365,-1932.5501623,0.00041095,30]
[325425947,1714863052377,-1725.28,0.00041095,30]
[325425948,1714863052390,-1031.93,0.00041095,30]
[325425949,1714863052401,-415.6747397,0.00041095,30]
[325425950,1714863052439,-500.0,0.00039999,31]
[325425951,1714863052453,-858.2252603,0.00041095,30]
[325425952,1714863052465,-1315.39,0.00041095,30]
[325425953,1714863052477,-500.0,0.00041095,30]
[325425954,1714863052489,-673.06,0.00041095,30]
[325425955,1714863052501,-1477.39,0.00041095,30]
[325425956,1714863052513,-547.2462743,0.00041095,30]
[325425957,1714863052524,-383.39626573,0.00041095,30]
[325425963,1714863384172,361.07647822,0.0001,30]
[325425998,1714864232713,-257.41029778,0.00011,2]
[325425999,1714864232724,-110.26299463,0.00011915,2]
[325426000,1714864232736,-5039.98851017,0.00011915,2]
[325426001,1714864232750,-3635.52168983,0.00011915,2]
[325426002,1714864232768,-7603.85073837,0.00011915,2]
[325426006,1714864232893,-695.72180476,0.00011915,2]
[325426007,1714864232905,-950.37307554,0.00011915,2]
[325426008,1714864232918,-442.695,0.00011915,2]
[325426009,1714864232933,-319.50034176,0.00011915,2]
[325426040,1714864238693,-2410.59715987,0.00011915,2]
[325426041,1714864238705,-596.04655466,0.00011915,2]
[325426045,1714864238798,-817.70213041,0.00011915,2]
[325426047,1714864238808,-2714.03992263,0.00011946,2]
[325426050,1714864238820,-341.47871512,0.00011946,2]
[325426052,1714864238830,-645.72815968,0.00011947,2]
[325426054,1714864238841,-322.27184032,0.00011947,2]
[325426056,1714864238850,-170.82,0.00011975,2]
[325426058,1714864238859,-208.87,0.00011982,2]
[325426060,1714864238868,-250.0,0.00012251,2]
[325426062,1714864238878,-1500.0,0.00012333,2]
[325426063,1714864238887,-161.01,0.00012343,2]
[325426064,1714864238898,-161.01,0.00012557,2]
[325426065,1714864238907,-500.0,0.00012639,2]
[325426066,1714864238918,-3773.35413034,0.00012765,2]
[325426067,1714864238928,-828.21095146,0.00012766,2]
[325426068,1714864238938,-499.99,0.00012766,2]
[325426069,1714864238948,-150.99,0.00012766,2]
[325426070,1714864238958,-150.99,0.00012766,2]
[325426071,1714864238968,-156.95680701,0.00012768,2]
[325426072,1714864238977,-161.01,0.00012772,2]
[325426073,1714864238987,-3731.481,0.000128,2]
[325426074,1714864238997,-256.4143,0.000128,2]
[325426075,1714864239007,-2159.6078,0.000128,2]
[325426076,1714864239016,-4988.9932,0.000128,2]
[325426077,1714864239026,-1561.5369,0.00012823,2]
[325426078,1714864239035,-565.8337,0.00012823,2]
[325426079,1714864239044,-22778.4101279,0.00012869,2]
[325426080,1714864239054,-200.0,0.00012881,2]
[325426081,1714864239063,-364.09927495,0.00012898,2]
[325426082,1714864239073,-578.0799,0.00012899,2]
[325426083,1714864239082,-107616.3436,0.000129,2]
[325426084,1714864239093,-3383.412,0.000129,2]
[325426085,1714864239103,-2625.8418,0.000129,2]
[325426086,1714864239113,-725.915,0.000129,2]
[325426087,1714864239124,-2093.3877,0.000129,2]
[325426088,1714864239134,-396.8531,0.000129,2]
[325426089,1714864239143,-155.24547237,0.00012916,2]
[325426090,1714864239153,-153.48495476,0.00012916,2]
[325426091,1714864239163,-180.86145385,0.00012916,2]
[325426092,1714864239173,-200.88129127,0.00012916,2]
[325426093,1714864239182,-156.956807,0.00012945,2]
[325426094,1714864239192,-161.01,0.00012986,2]
[325426095,1714864239202,-408.64578529,0.00012998,2]
[325426096,1714864239211,-308.50333015,0.00012998,2]
[325426097,1714864239221,-3041.98978951,0.00012998,2]
[325426098,1714864239231,-155.0,0.00012999,2]
[325426099,1714864239240,-186.53954695,0.00012999,2]
[325426100,1714864239249,-2322.88499883,0.00012999,2]
[325426101,1714864239259,-4519.49529704,0.00012999,2]
[325426102,1714864239268,-2162.2,0.00012999,2]
[325426103,1714864239278,-182957.66329917,0.00013,2]
[325426104,1714864239290,-1656.10551066,0.00013,2]
[325426116,1714864240730,-305.29094829,0.00013,2]
[325426117,1714864240741,-986.09529031,0.00013,2]
[325426118,1714864240780,-1006.632,0.00013,2]
[325426119,1714864240889,-2647175.63609883,0.00013,2]
[325426120,1714864240898,-150.0,0.00013015,2]
[325426121,1714864240908,-177.10224627,0.00013023,2]
[325426122,1714864240917,-156.956807,0.00013123,2]
[325426123,1714864240927,-156.956807,0.000133,2]
[325426124,1714864240936,-176.71348003,0.000134,2]
[325426125,1714864240946,-968.0,0.0001344,2]
[325426126,1714864240955,-208.87,0.0001348,2]
[325426127,1714864240964,-239.4,0.00013512,2]
[325426128,1714864240973,-200.0,0.00013699,2]
[325426129,1714864240982,-500.0,0.00013699,2]
[325426130,1714864240992,-196.9517741,0.00014,2]
[325426131,1714864241001,-176.01,0.00014297,2]
[325426132,1714864241010,-968.0,0.00014933,2]
[325426133,1714864241019,-208.87,0.00014978,2]
[325426134,1714864241029,-567.85204548,0.00015,2]
[325426135,1714864241038,-155.0,0.00015,2]
[325426136,1714864241047,-239.4,0.00015201,2]
[325426137,1714864241056,-176.01,0.00016085,2]
[325426138,1714864241066,-968.0,0.00016427,2]
[325426139,1714864241076,-208.87,0.00016476,2]
[325426140,1714864241085,-1125.69656936,0.000165,2]
[325426141,1714864241095,-239.4,0.0001689,2]
[325426142,1714864241104,-168.31011642,0.000169,2]
[325426143,1714864241115,-180.8614538,0.00016957,2]
[325426144,1714864241125,-176.01,0.00017872,2]
[325426145,1714864241134,-7057.57401053,0.0001788,2]
[325426146,1714864241144,-968.0,0.0001792,2]
[325426147,1714864241154,-208.87,0.00017974,2]
[325426148,1714864241163,-684.0,0.000185,2]
[325426149,1714864241172,-239.4,0.00018579,2]
[325426150,1714864241182,-155.24547237,0.00018806,2]
[325426151,1714864241191,-500.0,0.00019178,2]
[325426152,1714864241200,-500.0,0.00019178,2]
[325426153,1714864241210,-364.76170098,0.00019178,2]
[325426154,1714864241219,-500.0,0.00019178,2]
[325426155,1714864241228,-500.0,0.00019178,2]
[325426156,1714864241238,-500.0,0.00019178,2]
[325426157,1714864241247,-500.0,0.00019178,2]
[325426158,1714864241256,-500.0,0.00019178,2]
[325426159,1714864241265,-500.0,0.00019178,2]
[325426160,1714864241274,-500.0,0.00019178,2]
[325426161,1714864241283,-500.0,0.00019178,2]
[325426162,1714864241293,-240.59250247,0.00019178,2]
[325426163,1714864241303,-500.0,0.00019178,2]
[325426164,1714864241313,-500.0,0.00019178,2]
[325426165,1714864241322,-572.55337097,0.00019178,2]
[325426166,1714864241332,-500.0,0.00019178,2]
[325426167,1714864241341,-500.0,0.00019178,2]
[325426168,1714864241351,-500.0,0.00019178,2]
[325426169,1714864241360,-500.0,0.00019178,2]
[325426170,1714864241370,-500.0,0.00019178,2]
[325426171,1714864241379,-500.0,0.00019178,2]
[325426172,1714864241390,-500.0,0.00019178,2]
[325426173,1714864241404,-500.0,0.00019178,2]
[325426174,1714864241413,-500.0,0.00019178,2]
[325426175,1714864241423,-500.0,0.00019178,2]
[325426176,1714864241433,-500.0,0.00019178,2]
[325426177,1714864241442,-500.0,0.00019178,2]
[325426178,1714864241451,-500.0,0.00019178,2]
[325426179,1714864241461,-500.0,0.00019178,2]
[325426180,1714864241471,-500.0,0.00019178,2]
[325426181,1714864241480,-500.0,0.00019178,2]
[325426182,1714864241489,-500.0,0.00019178,2]
[325426183,1714864241499,-500.0,0.00019178,2]
[325426184,1714864241508,-500.0,0.00019178,2]
[325426185,1714864241517,-500.0,0.00019178,2]
[325426186,1714864241527,-500.0,0.00019178,2]
[325426187,1714864241536,-500.0,0.00019178,2]
[325426188,1714864241545,-500.0,0.00019178,2]
[325426189,1714864241555,-500.0,0.00019178,2]
[325426190,1714864241565,-500.0,0.00019178,2]
[325426191,1714864241575,-500.0,0.00019178,2]
[325426192,1714864241584,-500.0,0.00019178,2]
[325426193,1714864241593,-500.0,0.00019178,2]
[325426194,1714864241602,-500.0,0.00019178,2]
[325426195,1714864241612,-500.0,0.00019178,2]
[325426196,1714864241621,-500.0,0.00019178,2]
[325426197,1714864241630,-500.0,0.00019178,2]
[325426198,1714864241639,-500.0,0.00019178,2]
[325426199,1714864241648,-500.0,0.00019178,2]
[325426200,1714864241657,-500.0,0.00019178,2]
[325426201,1714864241666,-500.0,0.00019178,2]
[325426202,1714864241675,-500.0,0.00019178,2]
[325426203,1714864241685,-500.0,0.00019178,2]
[325426204,1714864241694,-500.0,0.00019178,2]
[325426205,1714864241703,-500.0,0.00019178,2]
[325426206,1714864241712,-500.0,0.00019178,2]
[325426207,1714864241721,-500.0,0.00019178,2]
[325426208,1714864241730,-500.0,0.00019178,2]
[325426209,1714864241739,-500.0,0.00019178,2]
[325426210,1714864241748,-500.0,0.00019178,2]
[325426211,1714864241757,-500.0,0.00019178,2]
[325426212,1714864241767,-500.0,0.00019178,2]
[325426213,1714864241775,-500.0,0.00019178,2]
[325426214,1714864241785,-500.0,0.00019178,2]
[325426215,1714864241794,-500.0,0.00019178,2]
[325426216,1714864241803,-500.0,0.00019178,2]
[325426217,1714864241812,-500.0,0.00019178,2]
[325426218,1714864241821,-500.0,0.00019178,2]
[325426219,1714864241830,-500.0,0.00019178,2]
[325426220,1714864241839,-500.0,0.00019178,2]
[325426221,1714864241848,-500.0,0.00019178,2]